[Event "Early-Titled-Tuesday-Blitz-October-03-2023"]
[Site "Chess.com"]
[Date "2023.10.03"]
[Round "3"]
[White "Herman-NY"]
[Black "remi04"]
[Result "1-0"]
[WhiteElo "2520"]
[BlackElo "2852"]
[TimeControl "180+1"]
[EndTime "8:28:07 PDT"]
[Termination "Herman-NY won by resignation"]

1. e4 {[%clk 0:03:00.9]} 1... c5 {[%clk 0:03:00.2]} 2. Nf3 {[%clk 0:03:01.1]}
2... d6 {[%clk 0:03:00.6]} 3. d4 {[%clk 0:03:01.7]} 3... cxd4 {[%clk 0:03:01.5]}
4. Nxd4 {[%clk 0:03:02.5]} 4... Nf6 {[%clk 0:03:02]} 5. Nc3 {[%clk 0:03:03.2]}
5... a6 {[%clk 0:03:02.5]} 6. Bc4 {[%clk 0:03:03.7]} 6... e6 {[%clk 0:03:02.5]}
7. a3 {[%clk 0:03:04.3]} 7... Be7 {[%clk 0:03:02.7]} 8. Ba2 {[%clk 0:03:04.9]}
8... O-O {[%clk 0:03:02.4]} 9. Be3 {[%clk 0:03:05.6]} 9... b5 {[%clk 0:03:02.4]}
10. g4 {[%clk 0:03:05.3]} 10... Bb7 {[%clk 0:03:00.3]} 11. f3 {[%clk 0:03:01.3]}
11... Nc6 {[%clk 0:02:52.4]} 12. g5 {[%clk 0:03:00.3]} 12... Nd7 {[%clk
0:02:51.7]} 13. h4 {[%clk 0:03:01]} 13... Nde5 {[%clk 0:02:38.7]} 14. Qe2 {[%clk
0:02:42.9]} 14... Rc8 {[%clk 0:02:34.2]} 15. O-O-O {[%clk 0:02:33.6]} 15... b4
{[%clk 0:02:24.8]} 16. axb4 {[%clk 0:02:15.2]} 16... Nxb4 {[%clk 0:02:23.5]} 17.
Bb3 {[%clk 0:02:16]} 17... Qa5 {[%clk 0:02:20]} 18. Kb1 {[%clk 0:02:14.8]} 18...
Rb8 {[%clk 0:01:39.5]} 19. h5 {[%clk 0:02:10.2]} 19... d5 {[%clk 0:01:23.4]} 20.
g6 {[%clk 0:01:57.5]} 20... Bf6 {[%clk 0:01:02.2]} 21. f4 {[%clk 0:01:39.2]}
21... Nc4 {[%clk 0:01:00.1]} 22. e5 {[%clk 0:01:39.8]} 22... Be7 {[%clk
0:00:47.2]} 23. h6 {[%clk 0:01:32.7]} 23... fxg6 {[%clk 0:00:22]} 24. hxg7
{[%clk 0:01:33]} 24... Rf7 {[%clk 0:00:20.7]} 25. Rxh7 {[%clk 0:01:17]} 25...
Kxh7 {[%clk 0:00:13.2]} 26. Qh2+ {[%clk 0:01:17.2]} 26... Kxg7 {[%clk
0:00:13.4]} 27. Nxe6+ {[%clk 0:01:17.7]} 27... Kg8 {[%clk 0:00:13.8]} 28. Rh1
{[%clk 0:01:18.4]} 28... Rg7 {[%clk 0:00:07.4]} 29. Nxg7 {[%clk 0:00:54.8]}
29... Nxe3 {[%clk 0:00:03.5]} 30. e6 {[%clk 0:00:42]} 30... Kxg7 {[%clk
0:00:02.8]} 31. Qh7+ {[%clk 0:00:41.6]} 1-0

[Event "Early-Titled-Tuesday-Blitz-October-03-2023"]
[Site "Chess.com"]
[Date "2023.10.03"]
[Round "3"]
[White "AsselLesbekova"]
[Black "bazar-wokzal"]
[Result "0-1"]
[WhiteElo "2269"]
[BlackElo "2629"]
[TimeControl "180+1"]
[EndTime "8:28:08 PDT"]
[Termination "bazar-wokzal won by resignation"]

1. e4 {[%clk 0:03:00.9]} 1... Nc6 {[%clk 0:02:58.8]} 2. Nf3 {[%clk 0:03:00.3]}
2... d5 {[%clk 0:02:56.2]} 3. exd5 {[%clk 0:03:01.2]} 3... Qxd5 {[%clk
0:02:55.6]} 4. Nc3 {[%clk 0:03:01.5]} 4... Qa5 {[%clk 0:02:55.2]} 5. Bc4 {[%clk
0:03:01.7]} 5... Bg4 {[%clk 0:02:54.8]} 6. h3 {[%clk 0:03:00.3]} 6... Bh5 {[%clk
0:02:54.7]} 7. O-O {[%clk 0:02:48.9]} 7... O-O-O {[%clk 0:02:54]} 8. a3 {[%clk
0:02:45.7]} 8... e5 {[%clk 0:02:50.1]} 9. Be2 {[%clk 0:02:42]} 9... Nf6 {[%clk
0:02:42.3]} 10. d3 {[%clk 0:02:40.2]} 10... e4 {[%clk 0:02:39.7]} 11. Ne1 {[%clk
0:02:38.7]} 11... Bg6 {[%clk 0:02:29]} 12. Be3 {[%clk 0:02:34]} 12... Bd6 {[%clk
0:02:06.8]} 13. d4 {[%clk 0:02:20.6]} 13... Qf5 {[%clk 0:01:49.5]} 14. b4 {[%clk
0:02:10.2]} 14... Be5 {[%clk 0:01:41.9]} 15. g4 {[%clk 0:01:17.4]} 15... Qe6
{[%clk 0:01:38.9]} 16. d5 {[%clk 0:01:02.1]} 16... Nxd5 {[%clk 0:01:36.2]} 17.
Nxd5 {[%clk 0:01:00.6]} 17... Rxd5 {[%clk 0:01:28.3]} 18. Bc4 {[%clk 0:00:52.3]}
18... Rhd8 {[%clk 0:00:59.6]} 19. Bxd5 {[%clk 0:00:46.2]} 19... Rxd5 {[%clk
0:00:56.9]} 20. Qc1 {[%clk 0:00:38.5]} 20... h5 {[%clk 0:00:51.2]} 21. c4 {[%clk
0:00:29.6]} 21... Rd8 {[%clk 0:00:49]} 22. Bf4 {[%clk 0:00:18.6]} 22... Bxa1
{[%clk 0:00:32.9]} 23. Qxa1 {[%clk 0:00:19.5]} 23... hxg4 {[%clk 0:00:32.5]} 24.
hxg4 {[%clk 0:00:16.6]} 24... Qxg4+ {[%clk 0:00:30.2]} 25. Ng2 {[%clk
0:00:17.2]} 25... Nd4 {[%clk 0:00:27.9]} 0-1

[Event "Early-Titled-Tuesday-Blitz-October-03-2023"]
[Site "Chess.com"]
[Date "2023.10.03"]
[Round "3"]
[White "zozik"]
[Black "PattyCastillo"]
[Result "1-0"]
[WhiteElo "2315"]
[BlackElo "2034"]
[TimeControl "180+1"]
[EndTime "8:28:08 PDT"]
[Termination "zozik won on time"]

1. d4 {[%clk 0:02:56.9]} 1... d5 {[%clk 0:03:00]} 2. c4 {[%clk 0:02:51]} 2... c6
{[%clk 0:02:59.2]} 3. Nf3 {[%clk 0:02:51.1]} 3... Nf6 {[%clk 0:02:59.5]} 4. g3
{[%clk 0:02:51.8]} 4... e6 {[%clk 0:02:59.6]} 5. Bg2 {[%clk 0:02:52.5]} 5...
Nbd7 {[%clk 0:03:00.3]} 6. O-O {[%clk 0:02:53.2]} 6... Be7 {[%clk 0:02:59.4]} 7.
Nc3 {[%clk 0:02:51.9]} 7... O-O {[%clk 0:02:59.6]} 8. Nd2 {[%clk 0:02:52]} 8...
b6 {[%clk 0:02:43.6]} 9. e4 {[%clk 0:02:51.5]} 9... Bb7 {[%clk 0:02:36.5]} 10.
e5 {[%clk 0:02:50.7]} 10... Ne8 {[%clk 0:02:37.4]} 11. b3 {[%clk 0:02:41.1]}
11... Rc8 {[%clk 0:02:34.4]} 12. Bb2 {[%clk 0:02:40.2]} 12... a6 {[%clk
0:02:34.4]} 13. Rc1 {[%clk 0:02:38.7]} 13... Nc7 {[%clk 0:02:22.9]} 14. Qh5
{[%clk 0:02:35.6]} 14... g6 {[%clk 0:02:17.6]} 15. Qe2 {[%clk 0:02:31.8]} 15...
c5 {[%clk 0:02:15.2]} 16. cxd5 {[%clk 0:02:22.5]} 16... Nxd5 {[%clk 0:02:14.3]}
17. Nxd5 {[%clk 0:02:21.7]} 17... Bxd5 {[%clk 0:02:14.1]} 18. Bxd5 {[%clk
0:02:21.6]} 18... exd5 {[%clk 0:02:14.4]} 19. e6 {[%clk 0:02:21.9]} 19... Nf6
{[%clk 0:01:59.1]} 20. dxc5 {[%clk 0:02:18.3]} 20... bxc5 {[%clk 0:01:30.9]} 21.
Nf3 {[%clk 0:02:06.4]} 21... Ne4 {[%clk 0:01:17.1]} 22. exf7+ {[%clk 0:02:01.6]}
22... Rxf7 {[%clk 0:01:16.3]} 23. Ne5 {[%clk 0:02:02.2]} 23... Rf8 {[%clk
0:01:08]} 24. Qxa6 {[%clk 0:02:00.4]} 24... Qd6 {[%clk 0:00:48.9]} 25. Qxd6
{[%clk 0:01:47]} 25... Bxd6 {[%clk 0:00:49.8]} 26. Rcd1 {[%clk 0:01:45.5]} 26...
d4 {[%clk 0:00:46.1]} 27. Nc4 {[%clk 0:01:41.2]} 27... Bc7 {[%clk 0:00:42.4]}
28. f3 {[%clk 0:01:33.6]} 28... Ng5 {[%clk 0:00:38]} 29. Kg2 {[%clk 0:01:32.2]}
29... Rf5 {[%clk 0:00:29.1]} 30. h4 {[%clk 0:01:25.5]} 30... Ne6 {[%clk
0:00:27]} 31. Rfe1 {[%clk 0:01:23.5]} 31... Kf7 {[%clk 0:00:16.1]} 32. Re4
{[%clk 0:01:10.2]} 32... g5 {[%clk 0:00:10.7]} 33. h5 {[%clk 0:01:04.7]} 1-0

[Event "Early-Titled-Tuesday-Blitz-October-03-2023"]
[Site "Chess.com"]
[Date "2023.10.03"]
[Round "3"]
[White "Zampronha1971"]
[Black "taleslascando"]
[Result "1-0"]
[WhiteElo "2307"]
[BlackElo "2001"]
[TimeControl "180+1"]
[EndTime "8:28:19 PDT"]
[Termination "Zampronha1971 won on time"]

1. e4 {[%clk 0:03:00.9]} 1... e5 {[%clk 0:02:57.1]} 2. Nf3 {[%clk 0:02:59.9]}
2... Nc6 {[%clk 0:02:51]} 3. d4 {[%clk 0:03:00.3]} 3... exd4 {[%clk 0:02:50.7]}
4. Nxd4 {[%clk 0:03:01.2]} 4... Nf6 {[%clk 0:02:48.3]} 5. Nxc6 {[%clk
0:03:00.2]} 5... bxc6 {[%clk 0:02:49.2]} 6. e5 {[%clk 0:03:00.1]} 6... Qe7
{[%clk 0:02:46.9]} 7. Qe2 {[%clk 0:03:00.5]} 7... Nd5 {[%clk 0:02:46.3]} 8. c4
{[%clk 0:03:01.2]} 8... Ba6 {[%clk 0:02:45.7]} 9. b3 {[%clk 0:03:01.9]} 9... g6
{[%clk 0:02:45.6]} 10. f4 {[%clk 0:03:01.8]} 10... Bg7 {[%clk 0:02:45.8]} 11.
Qf2 {[%clk 0:03:02.2]} 11... Nb6 {[%clk 0:02:25.1]} 12. c5 {[%clk 0:03:00.1]}
12... Bxf1 {[%clk 0:02:11.1]} 13. cxb6 {[%clk 0:02:59.8]} 13... Ba6 {[%clk
0:01:56.5]} 14. bxc7 {[%clk 0:02:59.8]} 14... O-O {[%clk 0:01:55.2]} 15. Ba3
{[%clk 0:03:00]} 15... Qe6 {[%clk 0:01:31.6]} 16. Bxf8 {[%clk 0:02:59.4]} 16...
Bxe5 {[%clk 0:01:30]} 17. Qe3 {[%clk 0:02:42.5]} 17... Bxa1 {[%clk 0:01:00.7]}
18. Qxe6 {[%clk 0:02:39.9]} 18... fxe6 {[%clk 0:00:49.4]} 19. Bd6 {[%clk
0:02:37.5]} 19... Rc8 {[%clk 0:00:27.5]} 20. Kd2 {[%clk 0:02:33.6]} 20... Bd4
{[%clk 0:00:26.5]} 21. Nc3 {[%clk 0:02:01.5]} 21... Bb6 {[%clk 0:00:23.4]} 22.
Ne4 {[%clk 0:02:02]} 22... Kf7 {[%clk 0:00:17.7]} 23. Bc5 {[%clk 0:01:37.2]}
23... Bxc7 {[%clk 0:00:16.6]} 24. Bxa7 {[%clk 0:01:34.5]} 24... Bxf4+ {[%clk
0:00:15.4]} 25. Be3 {[%clk 0:01:35.1]} 25... Bxe3+ {[%clk 0:00:14.8]} 26. Kxe3
{[%clk 0:01:36]} 26... d5 {[%clk 0:00:14.2]} 27. Nd6+ {[%clk 0:01:35.3]} 27...
Ke7 {[%clk 0:00:13.3]} 28. Nxc8+ {[%clk 0:01:36.2]} 28... Bxc8 {[%clk
0:00:13.4]} 29. Rc1 {[%clk 0:01:29.6]} 29... Kd6 {[%clk 0:00:12.6]} 30. b4
{[%clk 0:01:29.4]} 30... e5 {[%clk 0:00:11.7]} 31. a4 {[%clk 0:01:28]} 31... Ba6
{[%clk 0:00:11.7]} 32. Rc5 {[%clk 0:01:24.9]} 32... Bc4 {[%clk 0:00:10.2]} 33.
Ra5 {[%clk 0:01:19.9]} 33... d4+ {[%clk 0:00:09.1]} 34. Kd2 {[%clk 0:01:17.1]}
34... e4 {[%clk 0:00:08.3]} 35. Ra8 {[%clk 0:01:14.3]} 35... e3+ {[%clk
0:00:06.5]} 36. Ke1 {[%clk 0:01:14.9]} 36... d3 {[%clk 0:00:05.6]} 37. Rd8+
{[%clk 0:00:59.8]} 37... Ke5 {[%clk 0:00:05.2]} 38. a5 {[%clk 0:00:55.4]} 38...
d2+ {[%clk 0:00:02.6]} 39. Kd1 {[%clk 0:00:55.6]} 1-0

[Event "Early-Titled-Tuesday-Blitz-October-03-2023"]
[Site "Chess.com"]
[Date "2023.10.03"]
[Round "3"]
[White "NovikovaGalina"]
[Black "FREDERICKtheMATE"]
[Result "0-1"]
[WhiteElo "2402"]
[BlackElo "2608"]
[TimeControl "180+1"]
[EndTime "8:28:20 PDT"]
[Termination "FREDERICKtheMATE won on time"]

1. e4 {[%clk 0:03:00.9]} 1... c6 {[%clk 0:03:00.1]} 2. d4 {[%clk 0:03:00.7]}
2... d5 {[%clk 0:03:00.6]} 3. e5 {[%clk 0:03:01.6]} 3... Bf5 {[%clk 0:03:00.5]}
4. Nc3 {[%clk 0:03:01.5]} 4... e6 {[%clk 0:02:59.4]} 5. g4 {[%clk 0:03:01.9]}
5... Bg6 {[%clk 0:02:59.4]} 6. Nge2 {[%clk 0:03:02.6]} 6... h6 {[%clk
0:02:57.5]} 7. h4 {[%clk 0:03:02.8]} 7... Nd7 {[%clk 0:02:56.4]} 8. Nf4 {[%clk
0:03:03.1]} 8... Bh7 {[%clk 0:02:55.8]} 9. Bd3 {[%clk 0:03:01.3]} 9... Bxd3
{[%clk 0:02:54.4]} 10. Qxd3 {[%clk 0:03:02.2]} 10... Ne7 {[%clk 0:02:54.7]} 11.
Be3 {[%clk 0:03:02.4]} 11... a6 {[%clk 0:02:54.7]} 12. O-O-O {[%clk 0:03:02.5]}
12... Qa5 {[%clk 0:02:52.8]} 13. Kb1 {[%clk 0:02:58.9]} 13... O-O-O {[%clk
0:02:51.8]} 14. Nh5 {[%clk 0:02:44.3]} 14... Kb8 {[%clk 0:02:46.8]} 15. f4
{[%clk 0:02:44.7]} 15... c5 {[%clk 0:02:40.6]} 16. f5 {[%clk 0:02:09.1]} 16...
c4 {[%clk 0:02:34.8]} 17. Qf1 {[%clk 0:02:05.8]} 17... exf5 {[%clk 0:02:28.8]}
18. gxf5 {[%clk 0:02:06.7]} 18... Nc6 {[%clk 0:02:26.5]} 19. e6 {[%clk 0:01:56]}
19... fxe6 {[%clk 0:02:24.8]} 20. fxe6 {[%clk 0:01:56.9]} 20... Nb6 {[%clk
0:02:23]} 21. Bf4+ {[%clk 0:01:49.9]} 21... Ka7 {[%clk 0:02:14.6]} 22. Bc7
{[%clk 0:01:34.6]} 22... Rc8 {[%clk 0:02:13.7]} 23. Bxb6+ {[%clk 0:01:32.8]}
23... Kxb6 {[%clk 0:02:14]} 24. Nf4 {[%clk 0:01:29.1]} 24... Ne7 {[%clk
0:02:05.7]} 25. Qf3 {[%clk 0:01:21.8]} 25... Rd8 {[%clk 0:02:04.6]} 26. Rhe1
{[%clk 0:01:16.9]} 26... g5 {[%clk 0:02:02.4]} 27. hxg5 {[%clk 0:00:59.6]} 27...
hxg5 {[%clk 0:02:03.3]} 28. Nh3 {[%clk 0:00:57.7]} 28... Bh6 {[%clk 0:01:57.1]}
29. Re5 {[%clk 0:00:45.7]} 29... Rdf8 {[%clk 0:01:49.2]} 30. Qg2 {[%clk
0:00:43.2]} 30... Kc6 {[%clk 0:01:39.9]} 31. Nf2 {[%clk 0:00:32.8]} 31... Bg7
{[%clk 0:01:22.6]} 32. Rxg5 {[%clk 0:00:31.3]} 32... Bf6 {[%clk 0:01:22.8]} 33.
Rg4 {[%clk 0:00:28.1]} 33... b5 {[%clk 0:01:20.7]} 34. a3 {[%clk 0:00:05.6]}
34... Qb6 {[%clk 0:01:15.8]} 35. Na2 {[%clk 0:00:05.3]} 35... a5 {[%clk
0:01:15.1]} 36. c3 {[%clk 0:00:05.8]} 36... Kc7 {[%clk 0:01:11.1]} 37. Rh1
{[%clk 0:00:04.3]} 37... Rxh1+ {[%clk 0:01:10]} 38. Qxh1 {[%clk 0:00:05.2]}
38... Qxe6 {[%clk 0:01:09.6]} 39. Rg1 {[%clk 0:00:05.1]} 39... Bxd4 {[%clk
0:01:08]} 40. cxd4 {[%clk 0:00:04.9]} 40... Rxf2 {[%clk 0:01:08.2]} 41. Nc1
{[%clk 0:00:03.6]} 41... Qf5+ {[%clk 0:01:05.3]} 42. Ka1 {[%clk 0:00:02.6]}
42... Qc2 {[%clk 0:01:05.5]} 0-1

[Event "Early-Titled-Tuesday-Blitz-October-03-2023"]
[Site "Chess.com"]
[Date "2023.10.03"]
[Round "3"]
[White "drdaro"]
[Black "Sergey85Rodchenkov"]
[Result "0-1"]
[WhiteElo "2253"]
[BlackElo "2517"]
[TimeControl "180+1"]
[EndTime "8:28:20 PDT"]
[Termination "Sergey85Rodchenkov won by resignation"]

1. a3 {[%clk 0:02:55.2]} 1... d5 {[%clk 0:02:59.6]} 2. e3 {[%clk 0:02:53.9]}
2... Nf6 {[%clk 0:02:59.3]} 3. Nf3 {[%clk 0:02:52.9]} 3... g6 {[%clk 0:02:59.1]}
4. b4 {[%clk 0:02:52.7]} 4... Bg7 {[%clk 0:02:59.3]} 5. Bb2 {[%clk 0:02:53.4]}
5... O-O {[%clk 0:02:59.7]} 6. Be2 {[%clk 0:02:54]} 6... b6 {[%clk 0:03:00]} 7.
O-O {[%clk 0:02:54.5]} 7... Bb7 {[%clk 0:03:00.5]} 8. d4 {[%clk 0:02:53.7]} 8...
Nbd7 {[%clk 0:02:58.3]} 9. c4 {[%clk 0:02:52.2]} 9... e6 {[%clk 0:02:56]} 10. c5
{[%clk 0:02:52.2]} 10... c6 {[%clk 0:02:51.7]} 11. Nbd2 {[%clk 0:02:50.5]} 11...
a5 {[%clk 0:02:51.4]} 12. Qb3 {[%clk 0:02:45]} 12... Ba6 {[%clk 0:02:20.4]} 13.
Bxa6 {[%clk 0:02:33.9]} 13... Rxa6 {[%clk 0:02:21.3]} 14. b5 {[%clk 0:02:33.2]}
14... a4 {[%clk 0:02:14.1]} 15. Qb4 {[%clk 0:02:20.4]} 15... bxc5 {[%clk
0:02:00.7]} 16. dxc5 {[%clk 0:02:19.5]} 16... cxb5 {[%clk 0:02:00.9]} 17. Rac1
{[%clk 0:02:10.5]} 17... Qa8 {[%clk 0:01:34.3]} 18. c6 {[%clk 0:02:00.7]} 18...
Rxc6 {[%clk 0:01:30.6]} 19. Nd4 {[%clk 0:01:42.7]} 19... Rb6 {[%clk 0:01:21.1]}
20. Rc7 {[%clk 0:01:35.7]} 20... Rfb8 {[%clk 0:01:11.1]} 21. Rfc1 {[%clk
0:01:33.7]} 21... Bf8 {[%clk 0:01:10.5]} 22. Qc3 {[%clk 0:01:29.5]} 22... b4
{[%clk 0:01:06.1]} 23. Qc2 {[%clk 0:01:15.7]} 23... bxa3 {[%clk 0:00:46.5]} 24.
Ba1 {[%clk 0:01:14.5]} 24... Bd6 {[%clk 0:00:39.7]} 25. Rc3 {[%clk 0:01:06.5]}
25... Bb4 {[%clk 0:00:39]} 26. Rc7 {[%clk 0:01:05.7]} 26... Bxd2 {[%clk
0:00:34.7]} 27. Qxd2 {[%clk 0:01:06]} 27... Rb1 {[%clk 0:00:35.2]} 28. Nf3
{[%clk 0:00:51]} 28... Rxc1+ {[%clk 0:00:28.7]} 29. Qxc1 {[%clk 0:00:51.9]}
29... a2 {[%clk 0:00:24.6]} 30. Qc3 {[%clk 0:00:47.5]} 30... e5 {[%clk
0:00:14.8]} 31. h4 {[%clk 0:00:45.1]} 31... Ne4 {[%clk 0:00:11.7]} 32. Qc2
{[%clk 0:00:32.5]} 32... Rb1+ {[%clk 0:00:11.6]} 33. Kh2 {[%clk 0:00:32.4]}
33... Rxa1 {[%clk 0:00:11.5]} 34. Rxd7 {[%clk 0:00:31.6]} 34... Rh1+ {[%clk
0:00:11]} 35. Kxh1 {[%clk 0:00:31.6]} 35... a1=Q+ {[%clk 0:00:11.5]} 0-1

[Event "Early-Titled-Tuesday-Blitz-October-03-2023"]
[Site "Chess.com"]
[Date "2023.10.03"]
[Round "3"]
[White "Vesper2018"]
[Black "RobertoJBM"]
[Result "1-0"]
[WhiteElo "2593"]
[BlackElo "2803"]
[TimeControl "180+1"]
[EndTime "8:28:23 PDT"]
[Termination "Vesper2018 won on time"]

1. e4 {[%clk 0:03:00.9]} 1... c6 {[%clk 0:02:59.9]} 2. d4 {[%clk 0:03:00.7]}
2... d5 {[%clk 0:03:00.8]} 3. e5 {[%clk 0:03:01.1]} 3... Bf5 {[%clk 0:03:00.2]}
4. Nf3 {[%clk 0:03:01.3]} 4... e6 {[%clk 0:02:59.9]} 5. Be2 {[%clk 0:03:01.5]}
5... Nd7 {[%clk 0:03:00]} 6. O-O {[%clk 0:03:00.5]} 6... Bg6 {[%clk 0:03:00.3]}
7. Nbd2 {[%clk 0:02:59.7]} 7... Nh6 {[%clk 0:03:00.5]} 8. Nb3 {[%clk 0:02:56.9]}
8... Nf5 {[%clk 0:03:00.4]} 9. a4 {[%clk 0:02:57.2]} 9... Be7 {[%clk 0:02:59.8]}
10. g4 {[%clk 0:02:56.8]} 10... Nh4 {[%clk 0:02:57.2]} 11. Nxh4 {[%clk
0:02:56.9]} 11... Bxh4 {[%clk 0:02:58.1]} 12. f4 {[%clk 0:02:57.3]} 12... f5
{[%clk 0:02:58.3]} 13. g5 {[%clk 0:02:51.2]} 13... h6 {[%clk 0:02:57.2]} 14. Bh5
{[%clk 0:02:51.2]} 14... Kf7 {[%clk 0:02:48.1]} 15. Kh1 {[%clk 0:02:44.8]} 15...
hxg5 {[%clk 0:02:46.5]} 16. Bxg6+ {[%clk 0:02:44.3]} 16... Kxg6 {[%clk
0:02:47.4]} 17. fxg5 {[%clk 0:02:44.6]} 17... Rh5 {[%clk 0:02:38.3]} 18. Rg1
{[%clk 0:02:41.8]} 18... Qe7 {[%clk 0:02:33.7]} 19. Qf3 {[%clk 0:02:27.3]} 19...
Rah8 {[%clk 0:02:31]} 20. Rg2 {[%clk 0:02:27]} 20... Kf7 {[%clk 0:02:15.9]} 21.
g6+ {[%clk 0:02:18.8]} 21... Kg8 {[%clk 0:02:01.3]} 22. Bf4 {[%clk 0:02:17.2]}
22... Qe8 {[%clk 0:01:46.4]} 23. Na5 {[%clk 0:02:12.4]} 23... Qc8 {[%clk
0:01:43.3]} 24. b4 {[%clk 0:02:04.7]} 24... Be7 {[%clk 0:01:41.1]} 25. Bd2
{[%clk 0:01:49.9]} 25... Rh3 {[%clk 0:01:31.9]} 26. Qf2 {[%clk 0:01:47.3]} 26...
R8h4 {[%clk 0:01:28.7]} 27. Nb3 {[%clk 0:01:40.9]} 27... Nb6 {[%clk 0:01:25]}
28. Nc5 {[%clk 0:01:37.2]} 28... Nc4 {[%clk 0:01:21.3]} 29. a5 {[%clk
0:01:31.6]} 29... b6 {[%clk 0:00:43.3]} 30. axb6 {[%clk 0:01:30]} 30... axb6
{[%clk 0:00:44.2]} 31. Nd3 {[%clk 0:01:29.8]} 31... Nxd2 {[%clk 0:00:42.3]} 32.
Qxd2 {[%clk 0:01:28.8]} 32... Rxd4 {[%clk 0:00:42.1]} 33. Ra7 {[%clk 0:01:17.7]}
33... Bf8 {[%clk 0:00:32.1]} 34. Qg5 {[%clk 0:01:07.6]} 34... Re4 {[%clk
0:00:10.5]} 35. Rg1 {[%clk 0:01:07.2]} 35... Re2 {[%clk 0:00:07.8]} 36. Rg2
{[%clk 0:01:03.1]} 36... Re4 {[%clk 0:00:06.6]} 37. Nf4 {[%clk 0:00:53.5]} 37...
Rf3 {[%clk 0:00:04.3]} 38. Qh5 {[%clk 0:00:46.5]} 1-0

[Event "Early-Titled-Tuesday-Blitz-October-03-2023"]
[Site "Chess.com"]
[Date "2023.10.03"]
[Round "3"]
[White "NikolaGry"]
[Black "Beca95"]
[Result "0-1"]
[WhiteElo "2709"]
[BlackElo "3024"]
[TimeControl "180+1"]
[EndTime "8:28:24 PDT"]
[Termination "Beca95 won by resignation"]

1. d4 {[%clk 0:03:00.9]} 1... Nf6 {[%clk 0:02:59.4]} 2. Bg5 {[%clk 0:02:59.6]}
2... e6 {[%clk 0:02:59.2]} 3. Nd2 {[%clk 0:02:58.9]} 3... h6 {[%clk 0:02:59.2]}
4. Bh4 {[%clk 0:02:57.1]} 4... d5 {[%clk 0:02:59.2]} 5. e3 {[%clk 0:02:57.2]}
5... Nbd7 {[%clk 0:02:59.2]} 6. f4 {[%clk 0:02:56.6]} 6... Be7 {[%clk
0:02:42.5]} 7. Bd3 {[%clk 0:02:54.5]} 7... b6 {[%clk 0:02:41.9]} 8. Qe2 {[%clk
0:02:50.2]} 8... Bb7 {[%clk 0:02:42]} 9. Ngf3 {[%clk 0:02:47.8]} 9... Ne4 {[%clk
0:02:41.4]} 10. Bxe7 {[%clk 0:02:46.2]} 10... Qxe7 {[%clk 0:02:42.3]} 11. O-O-O
{[%clk 0:02:43]} 11... c5 {[%clk 0:02:41.8]} 12. Bxe4 {[%clk 0:02:20.3]} 12...
dxe4 {[%clk 0:02:40.9]} 13. Ne5 {[%clk 0:02:20.5]} 13... cxd4 {[%clk 0:02:40.3]}
14. exd4 {[%clk 0:02:16.3]} 14... Nf6 {[%clk 0:02:32.6]} 15. Rhe1 {[%clk
0:02:03.7]} 15... Rc8 {[%clk 0:02:30.2]} 16. Kb1 {[%clk 0:01:53.9]} 16... h5
{[%clk 0:02:30.1]} 17. g3 {[%clk 0:01:51.2]} 17... g6 {[%clk 0:02:26.1]} 18. h3
{[%clk 0:01:50.2]} 18... Qb4 {[%clk 0:02:17.9]} 19. Nb3 {[%clk 0:01:39.9]} 19...
a5 {[%clk 0:01:48.2]} 20. c3 {[%clk 0:01:34.5]} 20... Qd6 {[%clk 0:01:48]} 21.
Qb5+ {[%clk 0:01:25.6]} 21... Kf8 {[%clk 0:01:47.4]} 22. Nxa5 {[%clk 0:01:10.2]}
22... bxa5 {[%clk 0:01:28.6]} 23. Qxb7 {[%clk 0:01:09.5]} 23... Rc7 {[%clk
0:01:28.8]} 24. Qb8+ {[%clk 0:00:51]} 24... Kg7 {[%clk 0:01:28.4]} 25. Nxf7
{[%clk 0:00:44.5]} 25... Rxb8 {[%clk 0:00:46.8]} 26. Nxd6 {[%clk 0:00:41]} 26...
e3 {[%clk 0:00:47.7]} 27. c4 {[%clk 0:00:30.3]} 27... Rc6 {[%clk 0:00:47.6]} 28.
c5 {[%clk 0:00:30.4]} 28... Nd5 {[%clk 0:00:46.9]} 29. Rc1 {[%clk 0:00:27.2]}
29... h4 {[%clk 0:00:47.4]} 30. gxh4 {[%clk 0:00:26.2]} 30... Rf8 {[%clk
0:00:48]} 31. Rg1 {[%clk 0:00:21]} 31... Nxf4 {[%clk 0:00:44.2]} 32. Rce1 {[%clk
0:00:19.1]} 32... e2 {[%clk 0:00:44.1]} 33. Rg4 {[%clk 0:00:19]} 33... e5 {[%clk
0:00:43.7]} 34. a3 {[%clk 0:00:14.8]} 34... exd4 {[%clk 0:00:41.8]} 35. b4
{[%clk 0:00:15]} 35... axb4 {[%clk 0:00:40]} 36. axb4 {[%clk 0:00:14.9]} 36...
d3 {[%clk 0:00:40.5]} 37. Kc1 {[%clk 0:00:15.1]} 37... Ra6 {[%clk 0:00:40.8]}
38. Kd2 {[%clk 0:00:14.7]} 38... Ra2+ {[%clk 0:00:40.8]} 39. Kc3 {[%clk
0:00:14.6]} 39... d2 {[%clk 0:00:41.2]} 0-1

[Event "Early-Titled-Tuesday-Blitz-October-03-2023"]
[Site "Chess.com"]
[Date "2023.10.03"]
[Round "3"]
[White "novocane"]
[Black "Elbebiber"]
[Result "1-0"]
[WhiteElo "2367"]
[BlackElo "2145"]
[TimeControl "180+1"]
[EndTime "8:28:24 PDT"]
[Termination "novocane won on time"]

1. d4 {[%clk 0:03:00]} 1... Nf6 {[%clk 0:02:57.5]} 2. c4 {[%clk 0:02:59.8]} 2...
e6 {[%clk 0:02:49.5]} 3. Nc3 {[%clk 0:02:59.6]} 3... d5 {[%clk 0:02:48.3]} 4.
cxd5 {[%clk 0:02:59.5]} 4... exd5 {[%clk 0:02:47.9]} 5. Bg5 {[%clk 0:02:59.7]}
5... c6 {[%clk 0:02:46.1]} 6. Qc2 {[%clk 0:02:59.6]} 6... Be7 {[%clk 0:02:45.7]}
7. e3 {[%clk 0:02:59.6]} 7... h6 {[%clk 0:02:45.5]} 8. Bh4 {[%clk 0:02:58.6]}
8... O-O {[%clk 0:02:41]} 9. Bd3 {[%clk 0:02:57.5]} 9... Re8 {[%clk 0:02:39.7]}
10. Nf3 {[%clk 0:02:56]} 10... Nbd7 {[%clk 0:02:38.2]} 11. O-O-O {[%clk
0:02:54]} 11... Nf8 {[%clk 0:02:23.7]} 12. h3 {[%clk 0:02:51.5]} 12... a5 {[%clk
0:02:15.3]} 13. g4 {[%clk 0:02:47.4]} 13... N6d7 {[%clk 0:02:08.5]} 14. Bg3
{[%clk 0:02:35.1]} 14... b5 {[%clk 0:02:00.6]} 15. Nxd5 {[%clk 0:02:32.1]} 15...
Nf6 {[%clk 0:01:10.9]} 16. Nc7 {[%clk 0:02:16.5]} 16... Be6 {[%clk 0:01:05.5]}
17. Nxa8 {[%clk 0:01:47.6]} 17... Qxa8 {[%clk 0:01:05.3]} 18. Kb1 {[%clk
0:01:41.1]} 18... Nd5 {[%clk 0:00:59.1]} 19. a3 {[%clk 0:01:30.8]} 19... a4
{[%clk 0:00:56.8]} 20. Ne5 {[%clk 0:01:29.6]} 20... Rc8 {[%clk 0:00:51.4]} 21.
e4 {[%clk 0:01:23.9]} 21... Nb6 {[%clk 0:00:44.4]} 22. Qd2 {[%clk 0:01:15.5]}
22... b4 {[%clk 0:00:41.7]} 23. axb4 {[%clk 0:00:53.9]} 23... a3 {[%clk
0:00:41.5]} 24. b3 {[%clk 0:00:53.3]} 24... Bxb3 {[%clk 0:00:40.6]} 25. Rc1
{[%clk 0:00:52.6]} 25... Qa4 {[%clk 0:00:38.4]} 26. d5 {[%clk 0:00:42]} 26...
Bxb4 {[%clk 0:00:36.8]} 27. Qf4 {[%clk 0:00:36.7]} 27... a2+ {[%clk 0:00:17]}
28. Ka1 {[%clk 0:00:35.8]} 28... Ba3 {[%clk 0:00:15.9]} 29. Qxf7+ {[%clk
0:00:33.7]} 29... Kh8 {[%clk 0:00:15.5]} 30. Nf3 {[%clk 0:00:27.8]} 30... Qb4
{[%clk 0:00:08.2]} 31. Be5 {[%clk 0:00:25]} 1-0